[Event "Titled Tuesday Blitz March 21 Late 2023"]
[White "EREBUNI91"]
[Black "Urbina Perez, Juan Antonio"]
[BlackFideId "2217368"]
[WhiteElo "2720"]
[BlackElo "2197"]
[Result "0-1"]
[Round "03"]
[TimeControl "180+2"]
[Date "2023.03.21"]
[WhiteClock "0:00:41"]
[BlackClock "0:01:12"]

1. e4 {[%clk 0:03:00]}  c5 {[%clk 0:02:57]} 2. Nc3 {[%clk 0:03:01]}  Nc6 {[%clk 0:02:54]} 3. Bb5 {[%clk 0:03:01]}  Nd4 {[%clk 0:02:54]} 4. Bc4 {[%clk 0:03:01]}  e6 {[%clk 0:02:52]} 5. Nge2 {[%clk 0:03:01]}  a6 {[%clk 0:02:51]} 6. a4 {[%clk 0:03:01]}  Nf6 {[%clk 0:02:46]} 7. O-O {[%clk 0:03:01]}  Nc6 {[%clk 0:02:26]} 8. d3 {[%clk 0:02:58]}  d5 {[%clk 0:02:24]} 9. exd5 {[%clk 0:02:58]}  Nxd5 {[%clk 0:02:25]} 10. Ba2 {[%clk 0:02:58]}  Be7 {[%clk 0:02:24]} 11. Re1 {[%clk 0:02:58]}  Nxc3 {[%clk 0:02:23]} 12. Nxc3 {[%clk 0:02:56]}  O-O {[%clk 0:02:23]} 13. Be3 {[%clk 0:02:53]}  b6 {[%clk 0:02:23]} 14. Qg4 {[%clk 0:02:48]}  Bb7 {[%clk 0:02:17]} 15. Ne4 {[%clk 0:02:34]}  Nd4 {[%clk 0:02:10]} 16. Qd1 {[%clk 0:01:26]}  Nf5 {[%clk 0:02:02]} 17. Bf4 {[%clk 0:01:25]}  Nd6 {[%clk 0:01:52]} 18. Qe2 {[%clk 0:01:21]}  Nxe4 {[%clk 0:01:46]} 19. dxe4 {[%clk 0:01:22]}  Qc8 {[%clk 0:01:43]} 20. Rad1 {[%clk 0:01:21]}  Qc6 {[%clk 0:01:40]} 21. Bb3 {[%clk 0:01:14]}  Rfd8 {[%clk 0:01:40]} 22. f3 {[%clk 0:01:13]}  Rxd1 {[%clk 0:01:38]} 23. Rxd1 {[%clk 0:01:13]}  Rd8 {[%clk 0:01:38]} 24. Rxd8+ {[%clk 0:01:12]}  Bxd8 {[%clk 0:01:39]} 25. Qd3 {[%clk 0:01:12]}  Be7 {[%clk 0:01:37]} 26. Kf1 {[%clk 0:01:05]}  h6 {[%clk 0:01:37]} 27. Ke2 {[%clk 0:00:58]}  b5 {[%clk 0:01:37]} 28. axb5 {[%clk 0:00:58]}  axb5 {[%clk 0:01:38]} 29. c4 {[%clk 0:00:58]}  Ba6 {[%clk 0:01:30]} 30. cxb5 {[%clk 0:00:55]}  Bxb5 {[%clk 0:01:31]} 31. Bc4 {[%clk 0:00:56]}  Bxc4 {[%clk 0:01:31]} 32. Qxc4 {[%clk 0:00:57]}  Qb6 {[%clk 0:01:28]} 33. b3 {[%clk 0:00:57]}  Qa5 {[%clk 0:01:22]} 34. Bd2 {[%clk 0:00:55]}  Qa2 {[%clk 0:01:18]} 35. Kd3 {[%clk 0:00:54]}  Qb1+ {[%clk 0:01:16]} 36. Qc2 {[%clk 0:00:55]}  Qf1+ {[%clk 0:01:15]} 37. Kc3 {[%clk 0:00:41]}  Bf6+ {[%clk 0:01:12]} 0-1


[Site "https://www.chess.com"]

[Event "Titled Tuesday Blitz March 21 Late 2023"]
[White "Erdogan, Anil Berk"]
[Black "Martinez Reyes, Pedro Ramon"]
[WhiteFideId "6348173"]
[BlackFideId "3901807"]
[WhiteElo "2007"]
[BlackElo "2340"]
[Result "0-1"]
[Round "03"]
[TimeControl "180+2"]
[Date "2023.03.21"]
[WhiteClock "0:00:06"]
[BlackClock "0:00:19"]

1. e4 {[%clk 0:03:00]}  e6 {[%clk 0:02:58]} 2. d4 {[%clk 0:03:00]}  d5 {[%clk 0:02:57]} 3. exd5 {[%clk 0:03:01]}  exd5 {[%clk 0:02:57]} 4. Nc3 {[%clk 0:03:02]}  Nf6 {[%clk 0:02:56]} 5. Bg5 {[%clk 0:03:03]}  Be7 {[%clk 0:02:56]} 6. Bd3 {[%clk 0:03:03]}  Nc6 {[%clk 0:02:55]} 7. Nge2 {[%clk 0:03:04]}  Nb4 {[%clk 0:02:56]} 8. f3 {[%clk 0:03:00]}  O-O {[%clk 0:02:54]} 9. a3 {[%clk 0:02:57]}  Nxd3+ {[%clk 0:02:53]} 10. Qxd3 {[%clk 0:02:58]}  c6 {[%clk 0:02:54]} 11. Ng3 {[%clk 0:02:51]}  Re8 {[%clk 0:02:52]} 12. Nce2 {[%clk 0:02:50]}  a5 {[%clk 0:02:47]} 13. O-O {[%clk 0:02:47]}  Qb6 {[%clk 0:02:45]} 14. a4 {[%clk 0:02:29]}  h6 {[%clk 0:02:39]} 15. Bf4 {[%clk 0:02:21]}  Qa6 {[%clk 0:02:12]} 16. Nc1 {[%clk 0:02:06]}  Qb6 {[%clk 0:02:04]} 17. Nb3 {[%clk 0:01:51]}  Qd8 {[%clk 0:02:00]} 18. Rfe1 {[%clk 0:01:45]}  b6 {[%clk 0:02:00]} 19. Nf5 {[%clk 0:01:38]}  Bf8 {[%clk 0:01:49]} 20. Rxe8 {[%clk 0:01:29]}  Qxe8 {[%clk 0:01:48]} 21. Nd6 {[%clk 0:01:15]}  Qe6 {[%clk 0:01:42]} 22. Nxc8 {[%clk 0:01:14]}  Rxc8 {[%clk 0:01:41]} 23. Bg3 {[%clk 0:01:09]}  Qd7 {[%clk 0:01:32]} 24. Re1 {[%clk 0:01:09]}  Re8 {[%clk 0:01:32]} 25. Be5 {[%clk 0:01:08]}  Nh7 {[%clk 0:01:27]} 26. c3 {[%clk 0:01:05]}  Qb7 {[%clk 0:01:13]} 27. Kh1 {[%clk 0:00:52]}  Ng5 {[%clk 0:01:13]} 28. Bg3 {[%clk 0:00:47]}  Rxe1+ {[%clk 0:01:12]} 29. Bxe1 {[%clk 0:00:48]}  Ne6 {[%clk 0:01:05]} 30. Bg3 {[%clk 0:00:47]}  g6 {[%clk 0:01:04]} 31. Be5 {[%clk 0:00:45]}  Bg7 {[%clk 0:01:03]} 32. Bxg7 {[%clk 0:00:33]}  Kxg7 {[%clk 0:01:04]} 33. Qe3 {[%clk 0:00:33]}  Qc7 {[%clk 0:01:04]} 34. g3 {[%clk 0:00:32]}  Qd6 {[%clk 0:00:59]} 35. f4 {[%clk 0:00:30]}  f6 {[%clk 0:00:57]} 36. Kg2 {[%clk 0:00:29]}  Qe7 {[%clk 0:00:56]} 37. Nc1 {[%clk 0:00:24]}  Kf7 {[%clk 0:00:56]} 38. Nd3 {[%clk 0:00:24]}  h5 {[%clk 0:00:55]} 39. f5 {[%clk 0:00:22]}  gxf5 {[%clk 0:00:53]} 40. Qh6 {[%clk 0:00:22]}  Ng7 {[%clk 0:00:54]} 41. Nf4 {[%clk 0:00:20]}  Qe4+ {[%clk 0:00:52]} 42. Kh3 {[%clk 0:00:20]}  Qf3 {[%clk 0:00:52]} 43. Qg6+ {[%clk 0:00:20]}  Kf8 {[%clk 0:00:50]} 44. Qxf6+ {[%clk 0:00:20]}  Kg8 {[%clk 0:00:50]} 45. Qd8+ {[%clk 0:00:17]}  Kh7 {[%clk 0:00:50]} 46. Qg5 {[%clk 0:00:17]}  Qg4+ {[%clk 0:00:48]} 47. Qxg4 {[%clk 0:00:17]}  fxg4+ {[%clk 0:00:49]} 48. Kg2 {[%clk 0:00:16]}  Kh6 {[%clk 0:00:48]} 49. Kf2 {[%clk 0:00:15]}  Kg5 {[%clk 0:00:48]} 50. Ke3 {[%clk 0:00:15]}  Nf5+ {[%clk 0:00:46]} 51. Kf2 {[%clk 0:00:15]}  Nd6 {[%clk 0:00:44]} 52. Ne6+ {[%clk 0:00:15]}  Kf5 {[%clk 0:00:38]} 53. Nd8 {[%clk 0:00:14]}  c5 {[%clk 0:00:37]} 54. Nc6 {[%clk 0:00:14]}  cxd4 {[%clk 0:00:31]} 55. Nxd4+ {[%clk 0:00:13]}  Ke4 {[%clk 0:00:31]} 56. Ke2 {[%clk 0:00:14]}  Nc4 {[%clk 0:00:28]} 57. b3 {[%clk 0:00:13]}  Ne3 {[%clk 0:00:29]} 58. Ne6 {[%clk 0:00:12]}  Nf5 {[%clk 0:00:23]} 59. Ng5+ {[%clk 0:00:09]}  Ke5 {[%clk 0:00:23]} 60. Nf7+ {[%clk 0:00:09]}  Ke6 {[%clk 0:00:18]} 61. Ng5+ {[%clk 0:00:09]}  Kf6 {[%clk 0:00:18]} 62. h4 {[%clk 0:00:05]}  Nxg3+ {[%clk 0:00:17]} 63. Ke3 {[%clk 0:00:05]}  Ne4 {[%clk 0:00:17]} 64. c4 {[%clk 0:00:05]}  Nxg5 {[%clk 0:00:17]} 65. hxg5+ {[%clk 0:00:06]}  Kxg5 {[%clk 0:00:17]} 66. cxd5 {[%clk 0:00:07]}  Kf6 {[%clk 0:00:18]} 67. Kd4 {[%clk 0:00:06]}  Ke7 {[%clk 0:00:18]} 68. Kc4 {[%clk 0:00:06]}  Kd6 {[%clk 0:00:18]} 69. b4 {[%clk 0:00:06]}  axb4 {[%clk 0:00:19]} 70. a5 {[%clk 0:00:06]}  bxa5 {[%clk 0:00:19]} 0-1


[Site "https://www.chess.com"]

[Event "Titled Tuesday Blitz March 21 Late 2023"]
[White "Bruedigam, Martin"]
[Black "Herrera Reyes, Jose Antonio"]
[WhiteFideId "24608033"]
[BlackFideId "2274914"]
[WhiteElo "2331"]
[BlackElo "2273"]
[Result "0-1"]
[Round "03"]
[TimeControl "180+2"]
[Date "2023.03.21"]
[WhiteClock "0:00:10"]
[BlackClock "0:00:12"]

1. d4 {[%clk 0:03:00]}  Nf6 {[%clk 0:02:59]} 2. c4 {[%clk 0:03:01]}  c5 {[%clk 0:02:59]} 3. d5 {[%clk 0:03:01]}  b5 {[%clk 0:03:00]} 4. cxb5 {[%clk 0:03:01]}  a6 {[%clk 0:03:00]} 5. bxa6 {[%clk 0:03:02]}  g6 {[%clk 0:03:00]} 6. Nc3 {[%clk 0:03:01]}  Bg7 {[%clk 0:03:01]} 7. e4 {[%clk 0:03:02]}  O-O {[%clk 0:03:01]} 8. Bd3 {[%clk 0:03:00]}  Qa5 {[%clk 0:03:00]} 9. Ne2 {[%clk 0:02:58]}  Bxa6 {[%clk 0:02:58]} 10. O-O {[%clk 0:02:58]}  d6 {[%clk 0:02:58]} 11. a4 {[%clk 0:02:46]}  Nbd7 {[%clk 0:02:53]} 12. Bxa6 {[%clk 0:02:41]}  Qxa6 {[%clk 0:02:52]} 13. Qc2 {[%clk 0:02:39]}  Rfb8 {[%clk 0:02:52]} 14. b3 {[%clk 0:02:38]}  c4 {[%clk 0:02:41]} 15. Rb1 {[%clk 0:02:37]}  cxb3 {[%clk 0:02:38]} 16. Rxb3 {[%clk 0:02:38]}  Rxb3 {[%clk 0:02:36]} 17. Qxb3 {[%clk 0:02:38]}  Nc5 {[%clk 0:02:37]} 18. Qc2 {[%clk 0:02:24]}  Nxa4 {[%clk 0:02:32]} 19. Nxa4 {[%clk 0:02:19]}  Qxa4 {[%clk 0:02:33]} 20. Qxa4 {[%clk 0:02:19]}  Rxa4 {[%clk 0:02:33]} 21. f3 {[%clk 0:02:20]}  Ra2 {[%clk 0:02:32]} 22. Nc3 {[%clk 0:02:03]}  Rc2 {[%clk 0:02:29]} 23. Nb5 {[%clk 0:02:03]}  Nd7 {[%clk 0:02:29]} 24. Be3 {[%clk 0:02:01]}  Ne5 {[%clk 0:02:12]} 25. Rc1 {[%clk 0:01:53]}  Rxc1+ {[%clk 0:01:57]} 26. Bxc1 {[%clk 0:01:54]}  Kf8 {[%clk 0:01:50]} 27. Kf1 {[%clk 0:01:53]}  Ke8 {[%clk 0:01:50]} 28. Ke2 {[%clk 0:01:52]}  h5 {[%clk 0:01:50]} 29. h3 {[%clk 0:01:48]}  Kd7 {[%clk 0:01:43]} 30. g4 {[%clk 0:01:36]}  h4 {[%clk 0:01:35]} 31. Bg5 {[%clk 0:01:31]}  Bf6 {[%clk 0:01:32]} 32. Bxf6 {[%clk 0:01:07]}  exf6 {[%clk 0:01:33]} 33. f4 {[%clk 0:01:05]}  Nc4 {[%clk 0:01:30]} 34. Nd4 {[%clk 0:01:00]}  Nb6 {[%clk 0:01:24]} 35. Nf3 {[%clk 0:00:50]}  Na4 {[%clk 0:00:59]} 36. Nxh4 {[%clk 0:00:46]}  Ke7 {[%clk 0:00:58]} 37. Nf3 {[%clk 0:00:37]}  Nc3+ {[%clk 0:00:58]} 38. Kd3 {[%clk 0:00:35]}  Na4 {[%clk 0:00:59]} 39. Kd4 {[%clk 0:00:33]}  Nb2 {[%clk 0:00:53]} 40. Ne1 {[%clk 0:00:27]}  Nd1 {[%clk 0:00:52]} 41. Nd3 {[%clk 0:00:27]}  f5 {[%clk 0:00:49]} 42. exf5 {[%clk 0:00:25]}  gxf5 {[%clk 0:00:49]} 43. g5 {[%clk 0:00:26]}  f6 {[%clk 0:00:49]} 44. g6 {[%clk 0:00:19]}  Kf8 {[%clk 0:00:49]} 45. h4 {[%clk 0:00:19]}  Kg7 {[%clk 0:00:49]} 46. h5 {[%clk 0:00:20]}  Kh6 {[%clk 0:00:50]} 47. Kc4 {[%clk 0:00:17]}  Ne3+ {[%clk 0:00:50]} 48. Kd4 {[%clk 0:00:16]}  Ng2 {[%clk 0:00:44]} 49. Nc1 {[%clk 0:00:13]}  Nxf4 {[%clk 0:00:44]} 50. Nb3 {[%clk 0:00:12]}  Nxh5 {[%clk 0:00:43]} 51. Na5 {[%clk 0:00:13]}  Ng7 {[%clk 0:00:34]} 52. Nc4 {[%clk 0:00:14]}  Ne8 {[%clk 0:00:34]} 53. Ke3 {[%clk 0:00:12]}  Nc7 {[%clk 0:00:22]} 54. Nxd6 {[%clk 0:00:09]}  Nxd5+ {[%clk 0:00:22]} 55. Kd4 {[%clk 0:00:09]}  Ne7 {[%clk 0:00:21]} 56. Ne8 {[%clk 0:00:04]}  Kxg6 {[%clk 0:00:21]} 57. Ke3 {[%clk 0:00:04]}  Nd5+ {[%clk 0:00:20]} 58. Kf3 {[%clk 0:00:05]}  Kf7 {[%clk 0:00:19]} 59. Nd6+ {[%clk 0:00:05]}  Ke6 {[%clk 0:00:19]} 60. Nc4 {[%clk 0:00:05]}  Nc7 {[%clk 0:00:18]} 61. Ne3 {[%clk 0:00:05]}  Ke5 {[%clk 0:00:18]} 62. Nc4+ {[%clk 0:00:05]}  Kd4 {[%clk 0:00:17]} 63. Nd6 {[%clk 0:00:06]}  Ke5 {[%clk 0:00:16]} 64. Nf7+ {[%clk 0:00:06]}  Ke6 {[%clk 0:00:14]} 65. Nh8 {[%clk 0:00:03]}  Nb5 {[%clk 0:00:09]} 66. Ng6 {[%clk 0:00:04]}  Nc3 {[%clk 0:00:08]} 67. Nf4+ {[%clk 0:00:04]}  Kf7 {[%clk 0:00:08]} 68. Ke3 {[%clk 0:00:04]}  Ne4 {[%clk 0:00:09]} 69. Kf3 {[%clk 0:00:04]}  Ng5+ {[%clk 0:00:09]} 70. Ke3 {[%clk 0:00:04]}  Ke7 {[%clk 0:00:08]} 71. Kd4 {[%clk 0:00:03]}  Ne6+ {[%clk 0:00:08]} 72. Ke3 {[%clk 0:00:03]}  Nxf4 {[%clk 0:00:08]} 73. Kxf4 {[%clk 0:00:04]}  Ke6 {[%clk 0:00:08]} 74. Ke3 {[%clk 0:00:05]}  Ke5 {[%clk 0:00:09]} 75. Kf3 {[%clk 0:00:06]}  f4 {[%clk 0:00:09]} 76. Kf2 {[%clk 0:00:06]}  Ke4 {[%clk 0:00:10]} 77. Ke2 {[%clk 0:00:07]}  f3+ {[%clk 0:00:10]} 78. Kf2 {[%clk 0:00:08]}  Kf4 {[%clk 0:00:10]} 79. Kf1 {[%clk 0:00:08]}  Ke3 {[%clk 0:00:11]} 80. Ke1 {[%clk 0:00:09]}  f5 {[%clk 0:00:11]} 81. Kf1 {[%clk 0:00:10]}  f2 {[%clk 0:00:12]} 0-1


[Site "https://www.chess.com"]

[Event "Titled Tuesday Blitz March 21 Late 2023"]
[White "Kubatko, Ivan"]
[Black "Diaz Perez, Michel Alejandro"]
[WhiteFideId "24111473"]
[BlackFideId "3517179"]
[WhiteElo "2285"]
[BlackElo "2333"]
[Result "1-0"]
[Round "03"]
[TimeControl "180+2"]
[Date "2023.03.21"]
[WhiteClock "0:00:12"]
[BlackClock "0:00:13"]

1. e4 {[%clk 0:03:00]}  d5 {[%clk 0:02:56]} 2. exd5 {[%clk 0:02:55]}  Nf6 {[%clk 0:02:57]} 3. d4 {[%clk 0:02:55]}  Bg4 {[%clk 0:02:56]} 4. Be2 {[%clk 0:02:54]}  Bxe2 {[%clk 0:02:54]} 5. Nxe2 {[%clk 0:02:55]}  Qxd5 {[%clk 0:02:52]} 6. O-O {[%clk 0:02:54]}  e6 {[%clk 0:02:53]} 7. Nbc3 {[%clk 0:02:52]}  Qd8 {[%clk 0:02:52]} 8. Qd3 {[%clk 0:02:46]}  c6 {[%clk 0:02:52]} 9. Ng3 {[%clk 0:02:35]}  Nbd7 {[%clk 0:02:50]} 10. f4 {[%clk 0:02:31]}  Qc7 {[%clk 0:02:38]} 11. f5 {[%clk 0:02:26]}  O-O-O {[%clk 0:02:37]} 12. Bf4 {[%clk 0:02:03]}  Qb6 {[%clk 0:02:15]} 13. Kh1 {[%clk 0:01:24]}  h5 {[%clk 0:02:13]} 14. fxe6 {[%clk 0:01:21]}  fxe6 {[%clk 0:02:14]} 15. Nge4 {[%clk 0:01:19]}  Nxe4 {[%clk 0:02:03]} 16. Qxe4 {[%clk 0:01:16]}  Re8 {[%clk 0:02:03]} 17. Rab1 {[%clk 0:01:07]}  Qa5 {[%clk 0:01:52]} 18. Qg6 {[%clk 0:00:52]}  Bb4 {[%clk 0:01:40]} 19. Ne4 {[%clk 0:00:52]}  Qf5 {[%clk 0:01:22]} 20. Qxf5 {[%clk 0:00:43]}  exf5 {[%clk 0:01:23]} 21. Nd6+ {[%clk 0:00:31]}  Bxd6 {[%clk 0:01:24]} 22. Bxd6 {[%clk 0:00:32]}  Re6 {[%clk 0:01:24]} 23. Bg3 {[%clk 0:00:28]}  g6 {[%clk 0:01:24]} 24. Rbe1 {[%clk 0:00:27]}  Rhe8 {[%clk 0:01:25]} 25. Rxe6 {[%clk 0:00:26]}  Rxe6 {[%clk 0:01:26]} 26. Re1 {[%clk 0:00:27]}  Rxe1+ {[%clk 0:01:24]} 27. Bxe1 {[%clk 0:00:28]}  Nf6 {[%clk 0:01:24]} 28. Kg1 {[%clk 0:00:25]}  Ne4 {[%clk 0:01:23]} 29. Kf1 {[%clk 0:00:23]}  Kd7 {[%clk 0:01:23]} 30. Ke2 {[%clk 0:00:23]}  b5 {[%clk 0:01:22]} 31. Kd3 {[%clk 0:00:19]}  g5 {[%clk 0:01:19]} 32. b3 {[%clk 0:00:19]}  Ke6 {[%clk 0:01:20]} 33. c4 {[%clk 0:00:19]}  a6 {[%clk 0:01:20]} 34. a4 {[%clk 0:00:18]}  g4 {[%clk 0:01:18]} 35. axb5 {[%clk 0:00:18]}  axb5 {[%clk 0:01:18]} 36. Bh4 {[%clk 0:00:14]}  Nd6 {[%clk 0:01:13]} 37. Bg3 {[%clk 0:00:14]}  Nb7 {[%clk 0:01:10]} 38. Be1 {[%clk 0:00:13]}  Nd6 {[%clk 0:01:02]} 39. Bb4 {[%clk 0:00:13]}  Nf7 {[%clk 0:00:56]} 40. Bd2 {[%clk 0:00:09]}  Nh8 {[%clk 0:00:52]} 41. d5+ {[%clk 0:00:05]}  cxd5 {[%clk 0:00:47]} 42. cxb5 {[%clk 0:00:05]}  Nf7 {[%clk 0:00:48]} 43. Bf4 {[%clk 0:00:04]}  Nd8 {[%clk 0:00:47]} 44. Kd4 {[%clk 0:00:04]}  Nb7 {[%clk 0:00:47]} 45. b4 {[%clk 0:00:03]}  h4 {[%clk 0:00:42]} 46. Bg5 {[%clk 0:00:03]}  h3 {[%clk 0:00:43]} 47. gxh3 {[%clk 0:00:03]}  gxh3 {[%clk 0:00:43]} 48. Bf4 {[%clk 0:00:03]}  Nd6 {[%clk 0:00:36]} 49. b6 {[%clk 0:00:01]}  Nb7 {[%clk 0:00:29]} 50. b5 {[%clk 0:00:01]}  Na5 {[%clk 0:00:23]} 51. Bc7 {[%clk 0:00:01]}  Nb7 {[%clk 0:00:16]} 52. Bf4 {[%clk 0:00:02]}  Na5 {[%clk 0:00:14]} 53. Bc7 {[%clk 0:00:02]}  Kd7 {[%clk 0:00:14]} 54. Kxd5 {[%clk 0:00:02]}  Nb3 {[%clk 0:00:15]} 55. Ke5 {[%clk 0:00:02]}  Nd2 {[%clk 0:00:13]} 56. Kxf5 {[%clk 0:00:02]}  Nf3 {[%clk 0:00:14]} 57. Kg4 {[%clk 0:00:02]}  Nd4 {[%clk 0:00:14]} 58. Kxh3 {[%clk 0:00:03]}  Nxb5 {[%clk 0:00:15]} 59. Kg4 {[%clk 0:00:03]}  Nd4 {[%clk 0:00:16]} 60. Kg5 {[%clk 0:00:02]}  Ne6+ {[%clk 0:00:17]} 61. Kg6 {[%clk 0:00:03]}  Nf8+ {[%clk 0:00:17]} 62. Kf5 {[%clk 0:00:03]}  Ne6 {[%clk 0:00:18]} 63. h4 {[%clk 0:00:03]}  Ng7+ {[%clk 0:00:18]} 64. Kg6 {[%clk 0:00:03]}  Ne6 {[%clk 0:00:14]} 65. h5 {[%clk 0:00:04]}  Nf8+ {[%clk 0:00:12]} 66. Kf7 {[%clk 0:00:03]}  Nh7 {[%clk 0:00:12]} 67. h6 {[%clk 0:00:03]}  Ng5+ {[%clk 0:00:12]} 68. Kg6 {[%clk 0:00:04]}  Ne6 {[%clk 0:00:12]} 69. Kf6 {[%clk 0:00:03]}  Nf8 {[%clk 0:00:11]} 70. Kg7 {[%clk 0:00:03]}  Ne6+ {[%clk 0:00:11]} 71. Kf7 {[%clk 0:00:03]}  Ng5+ {[%clk 0:00:12]} 72. Kg6 {[%clk 0:00:04]}  Ne6 {[%clk 0:00:12]} 73. h7 {[%clk 0:00:04]}  Nf8+ {[%clk 0:00:12]} 74. Kg7 {[%clk 0:00:05]}  Nxh7 {[%clk 0:00:12]} 75. Kxh7 {[%clk 0:00:06]}  Kc8 {[%clk 0:00:13]} 76. Kg6 {[%clk 0:00:07]}  Kb7 {[%clk 0:00:13]} 77. Kf5 {[%clk 0:00:08]}  Kc8 {[%clk 0:00:13]} 78. Ke5 {[%clk 0:00:09]}  Kb7 {[%clk 0:00:14]} 79. Kd5 {[%clk 0:00:10]}  Ka8 {[%clk 0:00:12]} 80. Kd6 {[%clk 0:00:10]}  Kb7 {[%clk 0:00:12]} 81. Kd7 {[%clk 0:00:10]}  Ka8 {[%clk 0:00:13]} 82. Bd6 {[%clk 0:00:10]}  Kb7 {[%clk 0:00:13]} 83. Bc5 {[%clk 0:00:10]}  Ka8 {[%clk 0:00:12]} 84. Kc6 {[%clk 0:00:10]}  Kb8 {[%clk 0:00:12]} 85. Bd6+ {[%clk 0:00:11]}  Ka8 {[%clk 0:00:11]} 86. b7+ {[%clk 0:00:11]}  Ka7 {[%clk 0:00:12]} 87. b8=Q+ {[%clk 0:00:11]}  Ka6 {[%clk 0:00:13]} 88. Qb6# {[%clk 0:00:12]} 1-0


[Site "https://www.chess.com"]

[Event "Titled Tuesday Blitz March 21 Late 2023"]
[White "Dudzinski, Pawel"]
[Black "Spata, German"]
[WhiteFideId "1117890"]
[BlackFideId "113026"]
[WhiteElo "2099"]
[BlackElo "2238"]
[Result "0-1"]
[Round "03"]
[TimeControl "180+2"]
[Date "2023.03.21"]
[WhiteClock "0:00:06"]
[BlackClock "0:00:15"]

1. e4 {[%clk 0:02:55]}  c6 {[%clk 0:02:57]} 2. d4 {[%clk 0:02:55]}  d5 {[%clk 0:02:57]} 3. exd5 {[%clk 0:02:56]}  cxd5 {[%clk 0:02:58]} 4. Bd3 {[%clk 0:02:56]}  Nf6 {[%clk 0:02:58]} 5. h3 {[%clk 0:02:57]}  Nc6 {[%clk 0:02:57]} 6. c3 {[%clk 0:02:57]}  e6 {[%clk 0:02:55]} 7. Bf4 {[%clk 0:02:56]}  Bd6 {[%clk 0:02:56]} 8. Ne2 {[%clk 0:02:56]}  Bxf4 {[%clk 0:02:50]} 9. Nxf4 {[%clk 0:02:57]}  Qd6 {[%clk 0:02:50]} 10. Qf3 {[%clk 0:02:55]}  O-O {[%clk 0:02:48]} 11. Nh5 {[%clk 0:02:40]}  Nxh5 {[%clk 0:02:41]} 12. Qxh5 {[%clk 0:02:41]}  g6 {[%clk 0:02:36]} 13. Qe2 {[%clk 0:02:34]}  e5 {[%clk 0:02:34]} 14. dxe5 {[%clk 0:02:34]}  Nxe5 {[%clk 0:02:35]} 15. O-O {[%clk 0:02:33]}  Bd7 {[%clk 0:02:21]} 16. f4 {[%clk 0:02:20]}  Nxd3 {[%clk 0:02:18]} 17. Qxd3 {[%clk 0:02:21]}  Rfe8 {[%clk 0:02:11]} 18. Na3 {[%clk 0:02:15]}  Qc5+ {[%clk 0:02:04]} 19. Qd4 {[%clk 0:02:11]}  Qxd4+ {[%clk 0:02:01]} 20. cxd4 {[%clk 0:02:12]}  Re4 {[%clk 0:01:57]} 21. Rad1 {[%clk 0:02:11]}  Rc8 {[%clk 0:01:54]} 22. Rd2 {[%clk 0:02:11]}  Kg7 {[%clk 0:01:45]} 23. Kh2 {[%clk 0:01:56]}  h5 {[%clk 0:01:43]} 24. Nb1 {[%clk 0:01:51]}  Rc4 {[%clk 0:01:35]} 25. Nc3 {[%clk 0:01:33]}  Rexd4 {[%clk 0:01:33]} 26. Rfd1 {[%clk 0:01:15]}  Rxd2 {[%clk 0:01:31]} 27. Rxd2 {[%clk 0:01:15]}  Rxf4 {[%clk 0:01:05]} 28. Nxd5 {[%clk 0:01:12]}  Re4 {[%clk 0:00:53]} 29. Nc3 {[%clk 0:00:36]}  Re7 {[%clk 0:00:51]} 30. Nd5 {[%clk 0:00:32]}  Re1 {[%clk 0:00:47]} 31. Nc3 {[%clk 0:00:24]}  Bc6 {[%clk 0:00:46]} 32. Nd5 {[%clk 0:00:20]}  h4 {[%clk 0:00:33]} 33. a3 {[%clk 0:00:18]}  Kf8 {[%clk 0:00:32]} 34. g3 {[%clk 0:00:13]}  hxg3+ {[%clk 0:00:32]} 35. Kxg3 {[%clk 0:00:14]}  Bxd5 {[%clk 0:00:28]} 36. Rxd5 {[%clk 0:00:15]}  Re3+ {[%clk 0:00:29]} 37. Kg4 {[%clk 0:00:15]}  Rb3 {[%clk 0:00:29]} 38. Rd2 {[%clk 0:00:14]}  Kg7 {[%clk 0:00:27]} 39. Kf4 {[%clk 0:00:13]}  Rxh3 {[%clk 0:00:25]} 40. Rd7 {[%clk 0:00:11]}  Rb3 {[%clk 0:00:25]} 41. Rd2 {[%clk 0:00:11]}  Kf6 {[%clk 0:00:24]} 42. Rd6+ {[%clk 0:00:11]}  Ke7 {[%clk 0:00:23]} 43. Rd2 {[%clk 0:00:11]}  f6 {[%clk 0:00:22]} 44. Kg4 {[%clk 0:00:11]}  Rb6 {[%clk 0:00:21]} 45. Kf4 {[%clk 0:00:11]}  Rd6 {[%clk 0:00:21]} 46. Rg2 {[%clk 0:00:12]}  g5+ {[%clk 0:00:21]} 47. Kf5 {[%clk 0:00:13]}  Rd5+ {[%clk 0:00:20]} 48. Kg6 {[%clk 0:00:13]}  Re5 {[%clk 0:00:18]} 49. Rf2 {[%clk 0:00:14]}  Re6 {[%clk 0:00:18]} 50. Rd2 {[%clk 0:00:12]}  g4 {[%clk 0:00:18]} 51. Rd4 {[%clk 0:00:13]}  g3 {[%clk 0:00:16]} 52. Rg4 {[%clk 0:00:10]}  Re3 {[%clk 0:00:16]} 53. a4 {[%clk 0:00:07]}  Rb3 {[%clk 0:00:15]} 54. Kg7 {[%clk 0:00:06]}  Ke6 {[%clk 0:00:15]} 55. Re4+ {[%clk 0:00:06]}  Kf5 {[%clk 0:00:15]} 56. Re2 {[%clk 0:00:06]}  Kf4 {[%clk 0:00:15]} 57. Rc2 {[%clk 0:00:05]}  Kf3 {[%clk 0:00:14]} 58. Kxf6 {[%clk 0:00:04]}  g2 {[%clk 0:00:14]} 59. Rc3+ {[%clk 0:00:05]}  Rxc3 {[%clk 0:00:14]} 60. bxc3 {[%clk 0:00:06]}  g1=Q {[%clk 0:00:15]} 0-1


[Site "https://www.chess.com"]

[Event "Titled Tuesday Blitz March 21 Late 2023"]
[White "Zamorano, Jorge"]
[Black "Huber, Benedikt"]
[WhiteFideId "173770"]
[BlackFideId "12923583"]
[WhiteElo "2331"]
[BlackElo "2199"]
[Result "1-0"]
[Round "03"]
[TimeControl "180+2"]
[Date "2023.03.21"]
[WhiteClock "0:01:21"]
[BlackClock "0:01:46"]

1. e4 {[%clk 0:02:49]}  e6 {[%clk 0:02:59]} 2. d3 {[%clk 0:02:48]}  d5 {[%clk 0:02:59]} 3. Nd2 {[%clk 0:02:49]}  c5 {[%clk 0:02:59]} 4. Ngf3 {[%clk 0:02:50]}  Nc6 {[%clk 0:02:59]} 5. g3 {[%clk 0:02:50]}  Nf6 {[%clk 0:02:59]} 6. Bg2 {[%clk 0:02:51]}  Be7 {[%clk 0:02:59]} 7. O-O {[%clk 0:02:51]}  Qc7 {[%clk 0:02:59]} 8. Re1 {[%clk 0:02:51]}  O-O {[%clk 0:02:57]} 9. e5 {[%clk 0:02:48]}  Nd7 {[%clk 0:02:57]} 10. Qe2 {[%clk 0:02:48]}  b5 {[%clk 0:02:57]} 11. Nf1 {[%clk 0:02:48]}  a5 {[%clk 0:02:57]} 12. Bf4 {[%clk 0:02:48]}  Ba6 {[%clk 0:02:57]} 13. h4 {[%clk 0:02:48]}  Rfc8 {[%clk 0:02:57]} 14. Ne3 {[%clk 0:02:44]}  Qd8 {[%clk 0:02:57]} 15. h5 {[%clk 0:02:39]}  h6 {[%clk 0:02:56]} 16. Ng4 {[%clk 0:02:38]}  Bf8 {[%clk 0:02:57]} 17. Qd2 {[%clk 0:02:35]}  b4 {[%clk 0:02:54]} 18. Rad1 {[%clk 0:02:12]}  Nb6 {[%clk 0:02:53]} 19. Nxh6+ {[%clk 0:01:35]}  gxh6 {[%clk 0:02:54]} 20. Bxh6 {[%clk 0:01:35]}  Bxh6 {[%clk 0:02:48]} 21. Qxh6 {[%clk 0:01:35]}  Qf8 {[%clk 0:02:49]} 22. Qf4 {[%clk 0:01:35]}  a4 {[%clk 0:02:30]} 23. c4 {[%clk 0:01:34]}  bxc3 {[%clk 0:02:30]} 24. bxc3 {[%clk 0:01:34]}  Kh7 {[%clk 0:02:03]} 25. Ng5+ {[%clk 0:01:31]}  Kg8 {[%clk 0:02:03]} 26. h6 {[%clk 0:01:28]}  Ra7 {[%clk 0:01:46]} 27. Qf6 {[%clk 0:01:21]} 1-0


[Site "https://www.chess.com"]